bitfinex/quotes_SOLUSD_20220208
["timestamp","ask_amount","ask_price","bid_price","bid_amount"]
[1644324759226,10.71,112.55,112.43,51.16705166]
[1644324759524,59.3831,112.57,112.43,51.16705166]
[1644324759725,59.41618443,112.57,112.43,51.16705166]
[1644324759924,13.3378,112.53,112.45,37.76046854]
[1644324760324,13.5878,112.53,112.45,38.01046854]
[1644324760525,13.3378,112.53,112.45,38.01046854]
[1644324761226,13.3352,112.55,112.45,91.29046854]
[1644324761424,0.03308443,112.57,112.45,91.29046854]
[1644324761624,2.48748263,112.57,112.45,91.29046854]
[1644324761824,0.03308443,112.57,112.45,97.82953854]
[1644324762325,13.36498443,112.57,112.45,141.96253854]
[1644324762525,0.03308443,112.57,112.45,152.67253854]
[1644324762727,0.03308443,112.58,112.48,47.72892434]
[1644324762927,0.03308443,112.59,112.48,47.72892434]
[1644324763126,0.03308443,112.59,112.48,107.79625434]
[1644324763527,0.03308443,112.59,112.48,54.51625434]
[1644324763727,13.36368443,112.59,112.48,54.51625434]
[1644324763927,13.36368443,112.59,112.48,47.97892434]
[1644324764127,17.80568443,112.59,112.48,47.97892434]
[1644324764928,17.80568443,112.59,112.48,47.72892434]
[1644324764929,2.45221905,112.58,112.48,47.72892434]
[1644324765128,18.37032411,112.58,112.48,47.72892434]
[1644324765333,13.3364,112.55,112.48,47.72892434]
[1644324765531,13.3364,112.55,112.43,23.106]
[1644324765728,15.88502063,112.54,112.43,23.106]
[1644324765931,71.05952063,112.54,112.43,23.106]
[1644324766128,71.05952063,112.54,112.43,23.356]
[1644324766329,68.95176514,112.54,112.43,23.356]
[1644324766529,68.95176514,112.54,112.44,44.49729249]
[1644324766928,55.1745,112.54,112.44,44.74729249]
[1644324767729,13.3394,112.51,112.44,44.74729249]
[1644324768133,13.5894,112.51,112.44,44.74729249]
[1644324768331,13.5894,112.51,112.4,48.6416]
[1644324768536,33.8024,112.51,112.4,55.18358]
[1644324768931,2.10775549,112.5,112.4,48.6416]
[1644324769131,13.3439,112.47,112.4,48.6416]
[1644324769330,13.3439,112.47,112.41,46.74112288]
[1644324771237,13.3439,112.47,112.4,48.6416]
[1644324771435,13.3439,112.47,112.4,48.8916]
[1644324771840,13.3439,112.47,112.37,139.7986]
[1644324772035,13.3439,112.47,112.36,46.7752]
[1644324772235,13.3439,112.47,112.36,92.68508819]
[1644324772437,24.0539,112.47,112.36,92.68508819]
[1644324773737,24.0539,112.47,112.36,92.93508819]
[1644324774036,24.3039,112.47,112.36,92.93508819]
[1644324774235,24.3039,112.47,112.36,86.39077819]
[1644324774835,24.0539,112.47,112.36,99.73587819]
[1644324775838,13.3439,112.47,112.38,35.03006526]
[1644324776040,13.3421,112.49,112.38,101.65286526]
[1644324776242,44.4702,112.52,112.38,103.84224934]
[1644324776439,40.63223342,112.54,112.4,93.30187585]
[1644324776639,40.63223342,112.54,112.42,36.85876552]
[1644324776839,23.0264,112.54,112.42,37.10876552]
[1644324777040,2.44983342,112.55,112.42,37.10876552]
[1644324777240,13.3373,112.53,112.42,43.10876552]
[1644324777441,13.3373,112.53,112.42,37.10876552]
[1644324779239,13.5873,112.53,112.42,37.10876552]
[1644324780241,10.71,112.52,112.42,37.10876552]
[1644324780444,15.155,112.52,112.42,37.10876552]
[1644324780642,13.3413,112.49,112.42,37.10876552]
[1644324782645,14.56556483,112.51,112.42,37.10876552]
[1644324782844,14.56556483,112.51,112.42,49.04376552]
[1644324783071,1.22576483,112.52,112.42,49.04376552]
[1644324783268,1.22576483,112.52,112.42,102.32376552]
[1644324783470,1.22576483,112.52,112.42,119.03376552]
[1644324783673,1.22576483,112.53,112.42,119.03376552]
[1644324783872,13.3364,112.53,112.43,23.0459]
[1644324784069,13.3364,112.53,112.44,42.8578908]
[1644324784267,13.3364,112.53,112.44,43.1078908]
[1644324784670,13.5864,112.53,112.44,43.1078908]
[1644324788877,13.5864,112.53,112.44,42.8578908]
[1644324789074,14.81216483,112.53,112.44,42.8578908]
[1644324789676,14.81216483,112.53,112.43,23.0459]
[1644324789876,1.22576483,112.52,112.41,24.415]
[1644324790075,1.22576483,112.52,112.41,30.9564]
[1644324790076,13.3415,112.49,112.41,30.9564]
[1644324790478,13.3415,112.49,112.41,6.5414]
[1644324790677,13.3415,112.49,112.42,36.86325001]
[1644324792280,13.5915,112.49,112.42,37.11325001]
[1644324793282,0.25,112.49,112.42,37.11325001]
[1644324793682,14.81526483,112.51,112.42,37.11325001]
[1644324793880,14.56526483,112.51,112.42,37.11325001]
[1644324794281,13.3395,112.51,112.42,37.11325001]
[1644324796484,14.56306483,112.52,112.42,103.73085001]
[1644324796687,1.22576483,112.53,112.42,126.61105001]
[1644324796888,1.22576483,112.54,112.44,38.33270034]
[1644324797089,1.22576483,112.54,112.44,48.27370034]
[1644324797285,1.22576483,112.54,112.44,101.80370034]
[1644324797686,24.57234926,112.55,112.44,101.80370034]
[1644324798688,13.3351,112.54,112.44,115.13880034]
[1644324799297,13.3351,112.54,112.44,38.58270034]
[1644324799691,14.81086483,112.54,112.44,38.58270034]
[1644324800590,13.5851,112.54,112.44,38.58270034]
[1644324800991,14.81086483,112.54,112.44,91.86270034]
[1644324802693,14.81086483,112.54,112.44,51.91790034]
[1644324803099,14.81086483,112.54,112.44,38.58270034]
[1644324803398,1.22576483,112.53,112.44,38.58270034]
[1644324803601,13.3371,112.52,112.44,38.58270034]
[1644324805302,13.3371,112.52,112.44,38.33270034]
[1644324805800,14.56286483,112.52,112.44,38.33270034]
[1644324806602,14.56286483,112.52,112.44,38.58270034]
[1644324807300,14.81286483,112.52,112.44,38.58270034]
[1644324809423,14.81286483,112.52,112.44,38.33270034]
[1644324809727,1.22576483,112.51,112.42,22.8802]
[1644324810224,13.3408,112.49,112.42,22.8802]
[1644324810624,13.3408,112.49,112.43,42.7896202]
[1644324810825,1.22576483,112.51,112.43,42.7896202]
[1644324811025,1.47576483,112.51,112.43,42.7896202]
[1644324811425,1.22576483,112.51,112.43,42.7896202]
[1644324811635,1.22576483,112.51,112.43,96.0696202]
[1644324811832,1.22576483,112.53,112.43,134.88847181]
[1644324812127,1.22576483,112.53,112.43,132.9537202]
[1644324812731,14.56136483,112.53,112.43,132.9537202]
[1644324813533,14.81136483,112.53,112.43,132.9537202]
[1644324814127,14.56136483,112.53,112.43,132.9537202]
[1644324815728,14.81136483,112.53,112.43,132.9537202]
[1644324816128,1.47576483,112.53,112.43,141.5587202]
[1644324816328,1.22576483,112.53,112.43,141.5587202]
[1644324816529,1.22576483,112.53,112.43,147.5587202]
[1644324816732,14.56036483,112.54,112.43,147.5587202]
[1644324817634,1.22576483,112.54,112.45,53.28]
[1644324817831,1.22576483,112.55,112.47,13.3313]
[1644324818038,0.03308443,112.56,112.47,13.3313]
[1644324818039,1.22576483,112.56,112.48,46.82901095]
[1644324818231,1.22576483,112.56,112.48,47.07901095]
[1644324818434,1.22576483,112.57,112.48,100.35901095]
[1644324818632,1.22576483,112.57,112.48,119.16901095]
[1644324818831,1.22576483,112.57,112.48,121.10366861]
[1644324819031,1.25884926,112.58,112.48,119.16901095]
[1644324819239,1.22576483,112.58,112.48,132.50021095]
[1644324819434,1.25884926,112.58,112.48,132.50021095]
[1644324819631,1.22576483,112.58,112.48,132.50021095]
[1644324819831,1.47576483,112.58,112.48,132.50021095]
[1644324820031,1.22576483,112.58,112.48,132.50021095]
[1644324820430,1.47576483,112.58,112.48,132.50021095]
[1644324820633,1.22576483,112.58,112.48,132.50021095]
[1644324821034,1.47576483,112.58,112.48,132.50021095]
[1644324821833,1.47576483,112.58,112.48,73.22021095]
[1644324821834,14.80526483,112.58,112.48,73.22021095]
[1644324822034,14.80526483,112.58,112.48,59.88901095]
[1644324822234,1.22576483,112.57,112.48,47.07901095]
[1644324822737,1.22576483,112.56,112.48,47.07901095]
[1644324823136,14.55856483,112.56,112.48,47.07901095]
[1644324823335,14.55856483,112.56,112.48,46.82901095]
[1644324824137,13.336,112.53,112.47,24.3932]
[1644324824335,13.336,112.53,112.44,24.1293]
[1644324824536,14.56176483,112.53,112.44,24.1293]
[1644324824735,14.56176483,112.53,112.44,6.0]
[1644324825135,14.56176483,112.53,112.45,48.05509292]
[1644324825738,14.56176483,112.53,112.45,48.30509292]
[1644324825937,14.56176483,112.53,112.45,48.05509292]
[1644324827336,14.56176483,112.53,112.45,48.30509292]
[1644324827739,14.56176483,112.53,112.45,48.05509292]
[1644324827940,14.56176483,112.53,112.42,13.3375]
[1644324828143,12.81,112.52,112.42,19.3375]
[1644324828341,13.3381,112.51,112.42,19.3375]
[1644324828941,13.3381,112.51,112.43,44.54084819]
[1644324829139,13.3381,112.51,112.43,50.54084819]
[1644324829339,13.3381,112.51,112.43,50.79084819]
[1644324829839,13.3381,112.51,112.43,64.12824819]
[1644324830640,13.3381,112.51,112.43,50.79084819]
[1644324830841,26.3981,112.51,112.43,50.79084819]
[1644324832342,13.5881,112.51,112.43,50.79084819]
[1644324832742,13.5881,112.51,112.43,52.72550585]
[1644324834245,13.3381,112.51,112.43,52.72550585]
[1644324834846,13.3381,112.51,112.43,66.06250585]
[1644324835646,13.5881,112.51,112.43,66.06250585]
[1644324836047,0.25,112.51,112.43,66.06250585]
[1644324836244,13.3368,112.52,112.43,66.06250585]
[1644324836446,13.5868,112.52,112.43,66.06250585]
[1644324837351,13.5868,112.52,112.43,119.34250585]
[1644324838655,13.5868,112.52,112.43,130.77604819]
[1644324839356,13.5868,112.52,112.43,64.12784819]
[1644324839755,13.5868,112.52,112.43,50.79084819]
[1644324839956,12.81,112.51,112.43,50.79084819]
[1644324840258,13.3409,112.49,112.43,44.54084819]
[1644324840458,26.1509,112.49,112.43,44.54084819]
[1644324841756,26.1509,112.49,112.43,44.79084819]
[1644324844277,26.4009,112.49,112.43,44.79084819]
[1644324846579,13.5909,112.49,112.43,0.25]
[1644324846779,13.5909,112.49,112.4,0.024]
[1644324846978,26.4009,112.49,112.39,36.4981]
[1644324847581,26.4009,112.49,112.4,37.30540714]
[1644324848381,26.4009,112.49,112.4,37.55540714]
[1644324850991,26.4009,112.49,112.39,0.024]
[1644324851388,27.62666483,112.49,112.39,0.024]
[1644324851588,5.67176483,112.48,112.37,0.024]
[1644324851786,13.3471,112.45,112.37,0.024]
[1644324851987,13.3471,112.45,112.37,41.89452561]
[1644324854491,13.3471,112.45,112.37,42.14452561]
[1644324855494,13.5971,112.45,112.37,42.14452561]
[1644324855701,13.5971,112.45,112.36,0.024]
[1644324855895,23.5081,112.45,112.36,0.024]
[1644324856096,14.91775549,112.44,112.36,0.024]
[1644324856298,13.352,112.42,112.34,0.024]
[1644324856496,12.81,112.41,112.34,0.024]
[1644324856695,4.449,112.4,112.32,6.54664]
[1644324856896,12.81,112.39,112.32,5.54664]
[1644324857096,22.58,112.39,112.31,0.024]
[1644324857398,24.68775549,112.39,112.29,0.024]
[1644324857596,4.45,112.38,112.27,0.024]
[1644324857796,13.3591,112.35,112.27,38.11129498]
[1644324857996,13.3591,112.35,112.27,38.08729498]
[1644324858205,13.3591,112.35,112.27,38.33729498]
[1644324858795,13.3591,112.35,112.27,40.27184801]
[1644324858995,26.1667,112.37,112.27,40.27184801]
[1644324859195,13.3567,112.37,112.27,54.10446272]
[1644324859395,12.81,112.39,112.27,113.38446272]
[1644324859597,12.81,112.41,112.28,77.6933]
[1644324859798,12.81,112.41,112.29,23.9454]
[1644324860099,12.81,112.41,112.29,39.71256774]
[1644324860396,26.162,112.41,112.31,48.57157818]
[1644324860597,26.412,112.41,112.31,48.59557818]
[1644324860800,4.449,112.4,112.31,48.82157818]
[1644324861001,12.81,112.39,112.31,48.82157818]
[1644324861797,13.3548,112.38,112.31,48.82157818]
[1644324863199,26.1648,112.38,112.3,0.024]
[1644324864103,26.1648,112.38,112.3,46.22195536]
[1644324864703,26.1648,112.38,112.3,46.47195536]
[1644324864907,26.1648,112.38,112.3,46.22195536]
[1644324865203,26.1648,112.38,112.3,46.47195536]
[1644324866007,13.3548,112.38,112.3,46.47195536]
[1644324867707,13.3548,112.38,112.3,46.44795536]
[1644324867909,13.353,112.4,112.3,48.38250839]
[1644324868107,13.353,112.4,112.3,71.67850839]
[1644324868610,49.4205,112.43,112.3,84.48850839]
[1644324868807,19.92691,112.42,112.31,0.024]
[1644324869008,6.57641,112.42,112.31,0.024]
[1644324869229,6.57641,112.42,112.32,1.93455303]
[1644324869533,6.57641,112.42,112.32,55.23855303]
[1644324869731,6.57641,112.42,112.32,61.48855303]
[1644324870131,6.57641,112.42,112.33,68.56215303]
[1644324870334,6.57641,112.42,112.34,46.54121162]
[1644324870731,13.3483,112.44,112.34,46.79121162]
[1644324870931,13.3483,112.44,112.34,46.81521162]
[1644324871532,13.3483,112.44,112.34,48.74976465]
[1644324871933,13.3483,112.44,112.34,62.09646465]
[1644324872236,13.3483,112.44,112.34,61.82246465]
[1644324873048,13.3461,112.46,112.34,115.10246465]
[1644324873251,13.5961,112.46,112.35,0.024]
[1644324873542,0.25,112.46,112.35,66.649]
[1644324873740,60.1111,112.49,112.36,0.024]
[1644324873939,64.8081,112.49,112.36,0.024]
[1644324874638,64.5581,112.49,112.36,0.024]
[1644324874937,13.3437,112.47,112.36,13.368]
[1644324875140,13.3437,112.47,112.37,0.024]
[1644324875337,13.3437,112.47,112.36,74.83255303]
[1644324875538,47.3011,112.49,112.36,74.83255303]
[1644324875738,60.6433,112.49,112.38,53.28]
[1644324875940,60.6433,112.49,112.39,46.22725188]
[1644324876539,76.34714057,112.49,112.39,46.45325188]
[1644324876937,76.34714057,112.49,112.39,46.20325188]
[1644324877138,80.79314057,112.49,112.39,46.20325188]
[1644324877338,81.04314057,112.49,112.39,46.45325188]
[1644324878440,76.59714057,112.49,112.39,46.45325188]
[1644324879641,77.8229054,112.49,112.39,46.45325188]
[1644324879840,77.8229054,112.49,112.39,0.25]
[1644324880041,79.93066089,112.49,112.37,0.024]
[1644324880242,17.257,112.48,112.37,0.024]
[1644324880442,13.3472,112.45,112.36,0.024]
[1644324884149,28.26495549,112.45,112.35,36.49575144]
[1644324884348,44.21879606,112.45,112.35,36.51975144]
[1644324884747,45.44456089,112.45,112.35,0.024]
[1644324885746,4.448,112.44,112.35,0.024]
[1644324885948,12.81,112.43,112.35,0.024]
[1644324886148,26.1637,112.42,112.35,0.024]
[1644324886347,30.6117,112.42,112.33,13.3755]
[1644324887247,30.6117,112.42,112.34,40.85428755]
[1644324887447,26.1637,112.42,112.34,40.85428755]
[1644324891255,26.1637,112.42,112.33,13.3755]
[1644324891453,26.1637,112.42,112.33,13.6255]
[1644324891652,26.4137,112.42,112.33,13.6255]
[1644324892255,26.4137,112.42,112.34,46.75281653]
[1644324894460,26.4137,112.42,112.33,13.6255]
[1644324895479,26.4137,112.42,112.33,57.81688275]
[1644324895882,26.4137,112.42,112.33,57.56688275]
[1644324896785,26.4137,112.42,112.32,0.024]
[1644324896985,28.52145549,112.42,112.32,0.024]
[1644324897182,29.74722032,112.42,112.32,0.024]
[1644324897985,4.449,112.41,112.32,0.024]
[1644324898183,13.3569,112.39,112.32,0.024]
[1644324898383,12.81,112.38,112.31,40.91155226]
[1644324898983,12.81,112.38,112.31,40.66155226]
[1644324899183,12.81,112.38,112.3,13.1127]
[1644324899789,13.3569,112.36,112.3,13.1127]
[1644324900286,13.3569,112.36,112.3,59.30164818]
[1644324900988,13.3569,112.36,112.3,13.1127]
[1644324901285,26.1669,112.36,112.28,0.024]
[1644324901485,26.1669,112.36,112.27,0.024]
[1644324901687,26.1669,112.36,112.26,37.1535]
[1644324901885,26.1669,112.36,112.26,37.1775]
[1644324902088,26.4169,112.36,112.26,24.0328]
[1644324902886,26.1669,112.36,112.26,24.0328]
[1644324903592,26.1669,112.36,112.26,24.2828]
[1644324903988,26.1669,112.36,112.26,48.5867]
[1644324904289,26.4169,112.36,112.26,48.5867]
[1644324904488,26.4169,112.36,112.26,48.3367]
[1644324904988,26.1669,112.36,112.26,48.3367]
[1644324905490,26.1669,112.36,112.26,50.27125209]
[1644324905690,26.1669,112.36,112.26,50.52125209]
[1644324905691,13.3569,112.36,112.26,50.52125209]
[1644324905891,13.3569,112.36,112.26,56.52125209]
[1644324906496,13.3554,112.37,112.26,56.52125209]
[1644324906794,12.81,112.4,112.26,146.12829209]
[1644324906994,12.81,112.4,112.27,1.26242529]
[1644324907195,12.81,112.4,112.28,13.3781]
[1644324907402,12.81,112.4,112.29,37.72903846]
[1644324907597,13.3538,112.39,112.29,39.66359055]
[1644324907797,13.3538,112.39,112.29,39.91359055]
[1644324907997,13.6038,112.39,112.29,45.88959055]
[1644324908197,13.6038,112.39,112.3,1.93455209]
[1644324908496,13.6038,112.39,112.29,37.97903846]
[1644324908699,13.6038,112.39,112.29,53.26759055]
[1644324908898,13.6038,112.39,112.29,59.26759055]
[1644324910008,13.6038,112.39,112.29,57.33303846]
[1644324910299,12.81,112.38,112.29,37.72903846]
[1644324910499,13.3578,112.36,112.29,37.72903846]
[1644324910700,13.3578,112.36,112.29,37.70503846]
[1644324911702,13.3578,112.36,112.29,37.95503846]
[1644324912104,13.6078,112.36,112.29,37.95503846]
[1644324915406,13.6078,112.36,112.29,37.70503846]
[1644324916809,13.6078,112.36,112.29,37.95503846]
[1644324917813,13.6078,112.36,112.29,37.70503846]
[1644324918014,26.4178,112.36,112.29,37.70503846]
[1644324922333,26.4178,112.36,112.27,24.8918]
[1644324922533,26.4178,112.36,112.27,24.8678]
[1644324922731,26.4178,112.36,112.27,24.8918]
[1644324923431,26.4178,112.36,112.28,35.29887099]
[1644324924235,26.1678,112.36,112.28,35.29887099]
[1644324926437,13.3578,112.36,112.28,48.90607099]
[1644324927737,13.6078,112.36,112.28,48.90607099]
[1644324928242,13.3549,112.37,112.28,48.90607099]
[1644324928440,13.3549,112.37,112.29,13.3791]
[1644324928640,13.3549,112.37,112.29,13.3551]
[1644324928838,13.3549,112.37,112.29,13.6051]
[1644324929038,13.3549,112.37,112.29,37.2272]
[1644324929638,13.3549,112.37,112.29,36.9772]
[1644324929838,13.3549,112.37,112.29,44.7182]
[1644324930637,13.3549,112.37,112.29,50.7182]
[1644324931041,13.3549,112.37,112.29,44.9682]
[1644324931539,13.6049,112.37,112.29,44.9682]
[1644324931740,13.6049,112.37,112.29,50.9682]
[1644324932139,13.6049,112.37,112.29,44.9682]
[1644324932639,13.6049,112.37,112.29,50.9682]
[1644324932839,13.6049,112.37,112.29,43.2272]
[1644324933046,13.6049,112.37,112.29,37.2272]
[1644324933247,13.6049,112.37,112.29,36.9772]
[1644324933444,13.6049,112.37,112.29,42.9772]
[1644324933646,13.6049,112.37,112.29,36.9772]
[1644324934446,13.6049,112.37,112.29,37.2272]
[1644324934846,13.3549,112.37,112.29,37.2272]
[1644324935046,13.3549,112.37,112.29,47.1962]
[1644324939649,13.3534,112.38,112.29,53.1962]
[1644324939850,13.3534,112.38,112.29,52.9702]
[1644324940050,13.3534,112.38,112.29,37.0012]
[1644324940950,13.6034,112.38,112.29,37.0012]
[1644324941551,13.6034,112.38,112.29,37.2512]
[1644324941753,13.3534,112.38,112.29,37.2512]
[1644324941952,13.3534,112.38,112.29,39.18575209]
[1644324942153,13.3534,112.38,112.29,57.01675209]
[1644324943353,13.6034,112.38,112.29,57.01675209]
[1644324943554,13.6034,112.38,112.29,55.0822]
[1644324944353,13.6034,112.38,112.29,49.0822]
[1644324946359,13.6034,112.38,112.3,1.93455209]
[1644324946558,13.3534,112.38,112.32,38.45885806]
[1644324946757,13.3534,112.38,112.32,48.73185806]
[1644324950263,13.6034,112.38,112.32,48.73185806]
[1644324951070,13.3534,112.38,112.32,48.98185806]
[1644324951269,1.22576483,112.4,112.32,50.91641015]
[1644324951483,1.22576483,112.4,112.32,56.91641015]
[1644324951666,1.22576483,112.41,112.32,56.91641015]
[1644324951866,1.22576483,112.41,112.33,0.024]
[1644324952067,1.22576483,112.42,112.36,41.30037996]
[1644324952268,1.22576483,112.42,112.36,50.96137996]
[1644324952467,13.3497,112.41,112.36,50.96137996]
[1644324952668,1.22576483,112.42,112.36,50.96137996]
[1644324952868,1.22576483,112.42,112.36,53.14593205]
[1644324953068,1.22576483,112.43,112.36,72.49463205]
[1644324953269,1.22576483,112.44,112.37,24.33]
[1644324953469,14.57176483,112.44,112.37,24.33]
[1644324953668,14.57176483,112.44,112.37,30.58]
[1644324954270,14.57176483,112.44,112.35,13.3492]
[1644324954474,1.22576483,112.42,112.34,24.8393]
[1644324954770,1.22576483,112.43,112.34,25.0893]
[1644324954971,1.22576483,112.43,112.34,33.2143]
[1644324955170,1.22576483,112.43,112.35,45.38431853]
[1644324955369,1.22576483,112.43,112.36,13.3485]
[1644324955786,1.22576483,112.43,112.36,13.5985]
[1644324955986,13.3486,112.42,112.35,69.58011853]
[1644324956187,13.3486,112.42,112.35,69.83011853]
[1644324956787,13.3486,112.42,112.35,83.17951853]
[1644324960191,13.5986,112.42,112.35,83.17951853]
[1644324960590,13.3486,112.42,112.35,83.17951853]
[1644324961891,13.5986,112.42,112.35,83.17951853]
[1644324962891,13.3486,112.42,112.35,83.17951853]
[1644324964797,13.5986,112.42,112.34,13.3508]
[1644324964998,2.10775549,112.41,112.33,0.024]
[1644324965197,13.3553,112.38,112.31,4.472]
[1644324965396,13.3553,112.38,112.3,0.024]
[1644324965797,13.3553,112.38,112.3,42.6260666]
[1644324966398,13.3553,112.38,112.3,42.8760666]
[1644324966804,13.3553,112.38,112.3,56.2316666]
[1644324968199,13.6053,112.38,112.3,56.2316666]
[1644324968599,15.71305549,112.38,112.3,0.024]
[1644324968798,15.71305549,112.38,112.22,9.30198464]
[1644324968799,13.3641,112.35,112.28,0.024]
[1644324968998,13.3641,112.35,112.21,46.8229]
[1644324968999,12.81,112.34,112.27,0.024]
[1644324969199,16.14352032,112.34,112.25,0.024]
[1644324969400,6.55975549,112.33,112.25,0.024]
[1644324969601,12.81,112.32,112.22,43.67793305]
[1644324969800,12.81,112.32,112.23,0.024]
[1644324969998,12.81,112.32,112.22,43.70193305]
[1644324970198,12.81,112.32,112.22,43.95193305]
[1644324970702,26.1758,112.32,112.22,43.70193305]
[1644324972207,26.1758,112.32,112.22,43.95193305]
[1644324973105,26.4258,112.32,112.22,43.95193305]
[1644324973708,26.1758,112.32,112.22,43.95193305]
[1644324974311,13.3658,112.32,112.22,51.88648514]
[1644324974506,13.3658,112.32,112.23,24.3689]
[1644324974709,13.3658,112.32,112.23,30.6429]
[1644324974906,13.3658,112.32,112.24,1.93455209]
[1644324975105,13.3658,112.32,112.24,6.0]
[1644324975305,13.3658,112.32,112.24,6.25]
[1644324975709,13.3658,112.32,112.24,19.6103]
[1644324976007,13.3658,112.32,112.24,13.6103]
[1644324976210,0.25,112.32,112.24,13.6103]
[1644324976608,13.3597,112.34,112.24,19.6103]
[1644324976809,13.3597,112.34,112.24,19.6343]
[1644324977709,13.3573,112.36,112.24,89.6843]
[1644324977909,13.3573,112.36,112.26,39.17145372]
[1644324978111,13.3573,112.36,112.28,13.3556]
[1644324978309,24.3688,112.38,112.28,25.7336]
[1644324978515,12.81,112.4,112.28,25.7576]
[1644324978711,12.81,112.4,112.29,24.3922]
[1644324978910,12.81,112.4,112.3,45.71480129]
[1644324979313,12.81,112.4,112.3,45.96480129]
[1644324980514,13.3528,112.39,112.3,59.31800129]
[1644324981316,13.3528,112.39,112.3,65.31800129]
[1644324981737,13.3528,112.39,112.3,59.31800129]
[1644324981937,13.3515,112.41,112.3,65.31800129]
[1644324982242,13.3515,112.41,112.3,89.20630129]
[1644324982638,13.3515,112.41,112.31,1.93455209]
[1644324982840,61.37876483,112.44,112.31,38.43225209]
[1644324983042,61.37876483,112.44,112.34,13.3491]
[1644324983043,13.3491,112.43,112.34,13.3491]
[1644324983244,13.3491,112.43,112.35,43.09460702]
[1644324983639,13.3491,112.43,112.35,43.34460702]
[1644324984039,13.3491,112.43,112.35,49.34460702]
[1644324984639,13.5991,112.43,112.35,49.34460702]
[1644324984845,13.5991,112.43,112.35,74.81360702]
[1644324985741,13.3491,112.43,112.35,74.81360702]
[1644324986041,57.3078,112.45,112.35,74.81360702]
[1644324986042,13.3469,112.44,112.35,74.81360702]
[1644324986543,45.74860266,112.47,112.35,74.81360702]
[1644324986741,12.81,112.46,112.37,13.3454]
[1644324987145,13.3457,112.46,112.37,15.52995209]
[1644324987353,0.03333783,112.47,112.37,21.52995209]
[1644324987544,0.03333783,112.48,112.39,40.42929477]
[1644324987746,0.03333783,112.47,112.39,51.59029477]
[1644324987949,0.03333783,112.49,112.4,15.27585209]
[1644324988148,12.81,112.51,112.4,70.92645209]
[1644324988447,0.03333783,112.49,112.41,1.93455209]
[1644324988645,0.03333783,112.51,112.41,7.93455209]
[1644324988845,0.03333783,112.51,112.41,8.18455209]
[1644324989046,0.03333783,112.51,112.43,47.49897862]
[1644324989245,47.93500266,112.53,112.43,57.02797862]
[1644324989446,47.93500266,112.53,112.43,70.36517862]
[1644324989646,48.18500266,112.53,112.43,70.36517862]
[1644324989852,13.3382,112.52,112.43,57.02797862]
[1644324990048,31.81896483,112.52,112.43,57.02797862]
[1644324990250,2.10775549,112.51,112.43,9.529]
[1644324990449,2.10775549,112.51,112.43,0.25]
[1644324990649,18.51410266,112.52,112.4,49.6506]
[1644324990850,1.22576483,112.51,112.4,49.9006]
[1644324991248,1.22576483,112.51,112.41,37.23236479]
[1644324991852,13.3417,112.5,112.41,37.23236479]
[1644324992650,13.3417,112.5,112.41,37.48236479]
[1644324993650,14.59810266,112.52,112.41,39.41691688]
[1644324993852,13.37233783,112.52,112.42,24.3702]
[1644324994252,14.59810266,112.52,112.42,24.6202]
[1644324994751,13.62233783,112.52,112.42,24.6202]
[1644324995351,13.37233783,112.52,112.42,24.6202]
[1644324996253,13.37233783,112.52,112.43,1.93455209]
[1644324996455,12.84333783,112.53,112.43,1.93455209]
[1644324996654,0.03333783,112.53,112.43,2.18455209]
[1644324996860,0.25,112.53,112.43,61.46455209]
[1644324997156,0.03333783,112.53,112.45,45.79254468]
[1644324997355,0.03333783,112.55,112.45,54.76354468]
[1644324997559,12.84333783,112.56,112.45,55.01354468]
[1644324997756,0.03333783,112.55,112.45,55.01354468]
[1644324998156,12.84333783,112.56,112.45,55.01354468]
[1644324998355,13.36923783,112.55,112.45,55.01354468]
[1644324998556,13.3359,112.55,112.45,55.01354468]
[1644324998755,13.36923783,112.55,112.45,55.01354468]
[1644324999655,13.36923783,112.55,112.45,46.04254468]
[1644325000055,13.61923783,112.55,112.45,46.04254468]
[1644325004161,13.61923783,112.55,112.45,52.04254468]
[1644325005064,13.61923783,112.55,112.45,46.04254468]
[1644325006264,15.72699332,112.55,112.45,46.04254468]